fUST/lending_fUST_20260109
["ID","MTS","AMOUNT","RATE_DAILY","PERIOD"]
[401114034,1767942643527,-500.0,0.00013699,2]
[401114035,1767942643535,-500.0,0.00013699,2]
[401114036,1767942643544,-500.0,0.00013699,2]
[401114037,1767942643553,-500.0,0.00013699,2]
[401114038,1767942643563,-410.94399086,0.00013699,2]
[401114039,1767942643571,-500.0,0.00013699,2]
[401114040,1767942643580,-500.0,0.00013699,2]
[401114041,1767942643589,-500.0,0.00013699,2]
[401114042,1767942643599,-500.0,0.00013699,2]
[401114043,1767942643608,-500.0,0.00013699,2]
[401114044,1767942643616,-501.73018416,0.00013699,2]
[401114045,1767942643629,-500.0,0.00013699,2]
[401114046,1767942643638,-500.0,0.00013699,2]
[401114047,1767942643647,-500.0,0.00013699,2]
[401114048,1767942643657,-500.0,0.00013699,2]
[401114049,1767942643666,-500.0,0.00013699,2]
[401114050,1767942643675,-160.64568013,0.00013699,2]
[401114051,1767942643684,-500.0,0.00013699,2]
[401114052,1767942643693,-500.0,0.00013699,2]
[401114053,1767942643702,-500.0,0.00013699,2]
[401114054,1767942643711,-500.0,0.00013699,2]
[401114055,1767942643720,-159.5886122,0.00013699,2]
[401114056,1767942643729,-500.0,0.00013699,2]
[401114057,1767942643738,-500.0,0.00013699,2]
[401114058,1767942643748,-500.0,0.00013699,2]
[401114059,1767942643757,-500.0,0.00013699,2]
[401114060,1767942643766,-500.0,0.00013699,2]
[401114061,1767942643775,-646.68328603,0.00013699,2]
[401114062,1767942643784,-500.0,0.00013699,2]
[401114063,1767942643794,-500.0,0.00013699,2]
[401114064,1767942643803,-500.0,0.00013699,2]
[401114065,1767942643813,-500.0,0.00013699,2]
[401114066,1767942643823,-500.0,0.00013699,2]
[401114067,1767942643832,-500.0,0.00013699,2]
[401114068,1767942643840,-500.0,0.00013699,2]
[401114069,1767942643850,-500.0,0.00013699,2]
[401114070,1767942643858,-979.022557,0.00013699,2]
[401114071,1767942643867,-979.022557,0.00013699,2]
[401114072,1767942643876,-979.022557,0.00013699,2]
[401114073,1767942643885,-979.022557,0.00013699,2]
[401114074,1767942643895,-500.0,0.00013699,2]
[401114075,1767942643904,-385.05374254,0.00013699,2]
[401114076,1767942643913,-500.0,0.00013821,2]
[401114077,1767942643922,-500.0,0.00013821,2]
[401114078,1767942643932,-1000.0,0.00013821,2]
[401114079,1767942643942,-873.49455711,0.00013821,2]
[401114080,1767942643951,-1000.0,0.00013821,2]
[401114081,1767942643963,-1000.0,0.00013821,2]
[401114082,1767942643972,-1000.0,0.00013821,2]
[401114083,1767942643981,-1000.0,0.00013821,2]
[401114084,1767942643990,-1000.0,0.00013821,2]
[401114085,1767942643999,-606.63181594,0.00013821,2]
[401114086,1767942644008,-1000.0,0.00013821,2]
[401114087,1767942644017,-1000.0,0.00013821,2]
[401114088,1767942644027,-500.0,0.00013821,2]
[401114089,1767942644036,-1000.0,0.00013821,2]
[401114090,1767942644045,-978.35295088,0.00013821,2]
[401114091,1767942644055,-500.0,0.00013821,2]
[401114092,1767942644064,-521.64765143,0.00013821,2]
[401114094,1767942644073,-500.0,0.00013821,2]
[401114096,1767942644082,-500.0,0.00013821,2]
[401114097,1767942644092,-500.0,0.00013821,2]
[401114099,1767942644101,-586.56788338,0.00013821,2]
[401114101,1767942644110,-500.0,0.00013821,2]
[401114103,1767942644119,-984.4965179,0.00013821,2]
[401114104,1767942644128,-500.0,0.00013821,2]
[401114105,1767942644137,-1000.0,0.00013821,2]
[401114106,1767942644146,-1000.0,0.00013821,2]
[401114107,1767942644155,-1000.0,0.00013821,2]
[401114108,1767942644164,-1000.0,0.00013821,2]
[401114109,1767942644173,-1000.0,0.00013821,2]
[401114110,1767942644183,-1001.65991965,0.00013821,2]
[401114111,1767942644193,-1000.0,0.00013821,2]
[401114112,1767942644202,-1000.0,0.00013821,2]
[401114113,1767942644211,-502.42702667,0.00013821,2]
[401114114,1767942644220,-1000.0,0.00013821,2]
[401114115,1767942644229,-1000.0,0.00013821,2]
[401114116,1767942644238,-1000.0,0.00013821,2]
[401114117,1767942644247,-1000.0,0.00013821,2]
[401114118,1767942644257,-1000.0,0.00013821,2]
[401114119,1767942644266,-1000.0,0.00013821,2]
[401114120,1767942644275,-1000.0,0.00013821,2]
[401114121,1767942644284,-1000.0,0.00013821,2]
[401114122,1767942644294,-1000.0,0.00013821,2]
[401114123,1767942644303,-454.14035013,0.00013821,2]
[401114124,1767942644313,-151.0,0.00013821,2]
[401114125,1767942644322,-151.0,0.00013821,2]
[401114126,1767942644332,-151.0,0.00013821,2]
[401114127,1767942644445,-186.239267,0.00013821,2]
[401114128,1767942644468,-186.239267,0.00013821,2]
[401114129,1767942644477,-186.239267,0.00013821,2]
[401114130,1767942644486,-186.239267,0.00013821,2]
[401114131,1767942644495,-207.62,0.00013821,2]
[401114132,1767942644504,-207.62,0.00014095,2]
[401114133,1767942644513,-600.0,0.00014221,2]
[401114134,1767942644524,-1000.0,0.00014247,2]
[401114135,1767942644533,-1000.0,0.00014247,2]
[401114136,1767942644542,-1000.0,0.00014247,2]
[401114137,1767942644551,-500.46507067,0.00014247,2]
[401114138,1767942644560,-1000.0,0.00014247,2]
[401114139,1767942644569,-1120.64308429,0.00014247,2]
[401114140,1767942644578,-1000.0,0.00014247,2]
[401114141,1767942644587,-500.70142733,0.00014247,2]
[401114142,1767942644596,-500.69099348,0.00014247,2]
[401114143,1767942644605,-1000.0,0.00014247,2]
[401114144,1767942644615,-1002.94143277,0.00014247,2]
[401114145,1767942644624,-1000.0,0.00014247,2]
[401114146,1767942644633,-389.69129343,0.00014247,2]
[401114147,1767942644643,-976.33364724,0.00014247,2]
[401114148,1767942644652,-1000.0,0.00014247,2]
[401114149,1767942644662,-250.0,0.00014247,2]
[401114150,1767942644671,-1000.0,0.00014247,2]
[401114151,1767942644680,-581.34216933,0.00014247,2]
[401114152,1767942644692,-929.39147875,0.00014247,2]
[401114153,1767942644701,-1000.0,0.00014247,2]
[401114154,1767942644711,-1000.0,0.00014247,2]
[401114155,1767942644720,-1000.0,0.00014247,2]
[401114156,1767942644729,-1001.60995325,0.00014247,2]
[401114157,1767942644738,-503.75899236,0.00014247,2]
[401114158,1767942644747,-1000.0,0.00014247,2]
[401114159,1767942644757,-1000.0,0.00014247,2]
[401114160,1767942644767,-1000.0,0.00014247,2]
[401114161,1767942644776,-1000.0,0.00014247,2]
[401114162,1767942644785,-1000.0,0.00014247,2]
[401114163,1767942644794,-505.42705469,0.00014247,2]
[401114164,1767942644804,-1000.0,0.00014247,2]
[401114165,1767942644813,-1000.0,0.00014247,2]
[401114166,1767942644822,-509.9151804,0.00014247,2]
[401114167,1767942644832,-509.21687107,0.00014247,2]
[401114168,1767942644842,-1000.0,0.00014247,2]
[401114169,1767942644851,-638.41119879,0.00014247,2]
[401114170,1767942644860,-1000.0,0.00014247,2]
[401114171,1767942644869,-1000.0,0.00014247,2]
[401114172,1767942644878,-1000.0,0.00014247,2]
[401114173,1767942644887,-1000.0,0.00014247,2]
[401114174,1767942644896,-1000.0,0.00014247,2]
[401114175,1767942644906,-1000.0,0.00014247,2]
[401114176,1767942644915,-151.0,0.00014368,2]
[401114177,1767942644924,-186.239267,0.00014368,2]
[401114178,1767942644934,-186.239267,0.00014368,2]
[401114179,1767942644943,-186.239267,0.00014368,2]
[401114180,1767942644953,-186.239267,0.00014368,2]
[401114181,1767942644962,-207.648197,0.00014368,2]
[401114182,1767942644972,-979.022557,0.00014368,2]
[401114183,1767942644982,-979.022557,0.00014368,2]
[401114184,1767942644991,-979.022557,0.00014368,2]
[401114185,1767942645000,-979.022557,0.00014368,2]
[401114186,1767942645009,-419.868976,0.00014368,2]
[401114187,1767942645018,-419.868976,0.00014368,2]
[401114188,1767942645028,-419.868976,0.00014368,2]
[401114189,1767942645037,-419.868976,0.00014368,2]
[401114190,1767942645046,-186349.058615,0.00014368,2]
[401114191,1767942645055,-620.6946182,0.00014368,2]
[401114192,1767942645064,-1281.06836301,0.00014368,2]
[401114193,1767942645074,-1500.0,0.00014368,2]
[401114194,1767942645083,-500.0,0.00014368,2]
[401114195,1767942645092,-1500.0,0.00014368,2]
[401114196,1767942645101,-1500.0,0.00014368,2]
[401114197,1767942645110,-1500.0,0.00014368,2]
[401114198,1767942645119,-600.45703756,0.00014368,2]
[401114199,1767942645129,-1500.0,0.00014368,2]
[401114200,1767942645138,-1500.0,0.00014368,2]
[401114201,1767942645147,-1500.0,0.00014368,2]
[401114202,1767942645156,-1500.0,0.00014368,2]
[401114204,1767942645165,-500.0,0.00014368,2]
[401114206,1767942645174,-1500.0,0.00014368,2]
[401114209,1767942645184,-651.39515074,0.00014368,2]
[401114211,1767942645193,-1500.0,0.00014368,2]
[401114213,1767942645202,-1500.0,0.00014368,2]
[401114214,1767942645211,-1500.0,0.00014368,2]
[401114215,1767942645220,-610.58225543,0.00014368,2]
[401114216,1767942645229,-1500.0,0.00014368,2]
[401114217,1767942645238,-1500.0,0.00014368,2]
[401114218,1767942645247,-1613.0,0.00014491,2]
[401114219,1767942645256,-151.0,0.000145,2]
[401114220,1767942645265,-5000.0,0.0001451,2]
[401114221,1767942645275,-900.0,0.00014768,2]
[401114222,1767942645284,-1000.0,0.00014781,2]
[401114223,1767942645293,-492.0,0.00014781,2]
[401114224,1767942645303,-501.97624413,0.00014795,2]
[401114225,1767942645312,-1500.0,0.00014795,2]
[401114226,1767942645321,-1000.0,0.00014795,2]
[401114227,1767942645330,-421.61092346,0.00014795,2]
[401114228,1767942645339,-1500.0,0.00014795,2]
[401114229,1767942645348,-1059.10175057,0.00014795,2]
[401114230,1767942645357,-1500.0,0.00014795,2]
[401114231,1767942645366,-1024.96479402,0.00014795,2]
[401114232,1767942645375,-242.93732994,0.00014795,2]
[401114233,1767942645384,-1500.0,0.00014795,2]
[401114234,1767942645393,-1456.20771994,0.00014795,2]
[401114235,1767942645403,-1073.61163202,0.00014795,2]
[401114236,1767942645412,-1000.0,0.00014795,2]
[401114237,1767942645422,-1500.0,0.00014795,2]
[401114238,1767942645431,-1000.0,0.00014795,2]
[401114239,1767942645440,-1500.0,0.00014795,2]
[401114240,1767942645449,-1000.0,0.00014795,2]
[401114241,1767942645458,-1004.73054898,0.00014795,2]
[401114242,1767942645468,-1500.0,0.00014795,2]
[401114243,1767942645476,-196.71136087,0.00014795,2]
[401114244,1767942645486,-1500.0,0.00014795,2]
[401114245,1767942645498,-1245.07051734,0.00014795,2]
[401114246,1767942645507,-1500.0,0.00014795,2]
[401114247,1767942645516,-210.18768542,0.00014795,2]
[401114250,1767942645531,-1500.0,0.00014795,2]
[401114252,1767942645541,-1500.0,0.00014795,2]
[401114253,1767942645551,-516.00183924,0.00014824,2]
[401114254,1767942645561,-100000.0,0.00014882,2]
[401114255,1767942645570,-454.13631744,0.000149,2]
[401114256,1767942645580,-454.13631744,0.000149,2]
[401114257,1767942645589,-454.13631744,0.000149,2]
[401114258,1767942645598,-979.022557,0.00014916,2]
[401114259,1767942645607,-979.022557,0.00014916,2]
[401114260,1767942645619,-979.022557,0.00014916,2]
[401114261,1767942645628,-979.022557,0.00014916,2]
[401114262,1767942645638,-419.868976,0.00014916,2]
[401114263,1767942645650,-419.868976,0.00014916,2]
[401114264,1767942645659,-419.868976,0.00014916,2]
[401114265,1767942645669,-419.868976,0.00014916,2]
[401114266,1767942645680,-1333.2661373,0.00014916,2]
[401114267,1767942645689,-500.0,0.00014916,2]
[401114268,1767942645698,-2000.0,0.00014916,2]
[401114269,1767942645708,-2000.0,0.00014916,2]
[401114270,1767942645718,-2000.0,0.00014916,2]
[401114271,1767942645727,-2000.0,0.00014916,2]
[401114272,1767942645740,-1365.99256781,0.00014916,2]
[401114273,1767942645750,-428.58199372,0.00014916,2]
[401114274,1767942645759,-526.2364852,0.00014916,2]
[401114275,1767942645770,-2000.0,0.00014916,2]
[401114276,1767942645781,-2000.0,0.00014916,2]
[401114277,1767942645793,-2000.0,0.00014916,2]
[401114278,1767942645806,-2000.0,0.00014916,2]
[401114279,1767942645815,-2000.0,0.00014916,2]
[401114280,1767942645824,-800.0,0.00015068,2]
[401114281,1767942645834,-6006.53001288,0.00015138,2]
[401114282,1767942645845,-1200.0,0.00015316,2]
[401114283,1767942645855,-3715.4218359,0.00015316,2]
[401114284,1767942645865,-151.0,0.00015342,2]
[401114285,1767942645874,-186.239267,0.00015342,2]
[401114286,1767942645884,-186.239267,0.00015342,2]
[401114287,1767942645894,-186.239267,0.00015342,2]
[401114288,1767942645904,-186.239267,0.00015342,2]
[401114289,1767942645913,-2000.0,0.00015342,2]
[401114290,1767942645922,-1000.0,0.00015342,2]
[401114291,1767942645932,-2000.0,0.00015342,2]
[401114292,1767942645943,-2000.0,0.00015342,2]
[401114293,1767942645952,-2000.0,0.00015342,2]
[401114294,1767942645963,-1500.0,0.00015342,2]
[401114295,1767942645974,-2000.0,0.00015342,2]
[401114296,1767942645983,-1456.95332704,0.00015342,2]
[401114297,1767942645993,-947.49421984,0.00015342,2]
[401114298,1767942646002,-2000.0,0.00015342,2]
[401114299,1767942646012,-2000.0,0.00015342,2]
[401114300,1767942646023,-2403.26771612,0.00015413,2]
[401114301,1767942646033,-2500.0,0.00015464,2]
[401114302,1767942646043,-2500.0,0.00015464,2]
[401114303,1767942646053,-672.22882441,0.00015464,2]
[401114304,1767942646063,-1500.0,0.00015464,2]
[401114305,1767942646072,-2500.0,0.00015464,2]
[401114306,1767942646085,-2500.0,0.00015464,2]
[401114307,1767942646094,-2500.0,0.00015464,2]
[401114308,1767942646103,-2500.0,0.00015464,2]
[401114309,1767942646112,-151.0,0.000156,2]
[401114310,1767942646122,-2403.26771612,0.00015847,2]
[401114311,1767942646131,-1500.0,0.00015864,2]
[401114312,1767942646140,-1000.0,0.0001589,2]
[401114313,1767942646150,-578.16970935,0.0001589,2]
[401114314,1767942646160,-2089.88646751,0.0001589,2]
[401114315,1767942646169,-2500.0,0.0001589,2]
[401114316,1767942646179,-2500.0,0.0001589,2]
[401114317,1767942646187,-2500.0,0.0001589,2]
[401114318,1767942646197,-2258.0,0.00015941,2]
[401114319,1767942646206,-3000.0,0.00016012,2]
[401114320,1767942646215,-2742.77749232,0.00016012,2]
[401114321,1767942646225,-3000.0,0.00016012,2]
[401114322,1767942646235,-1897.40421659,0.00016012,2]
[401114323,1767942646244,-3000.0,0.00016012,2]
[401114324,1767942646253,-3000.0,0.00016012,2]
[401114325,1767942646263,-2403.26771612,0.00016062,2]
[401114326,1767942646272,-1600.0,0.00016164,2]
[401114327,1767942646281,-1000.0,0.00016259,2]
[401114328,1767942646292,-791.0,0.00016259,2]
[401114329,1767942646302,-2403.26771612,0.00016293,2]
[401114330,1767942646311,-619.25363932,0.00016382,8]
[401114331,1767942646321,-1800.0,0.00016412,2]
[401114332,1767942646331,-151.0,0.00016438,2]
[401114333,1767942646340,-151.0,0.00016438,2]
[401114334,1767942646349,-151.0,0.00016438,2]
[401114335,1767942646359,-151.0,0.00016438,2]
[401114336,1767942646368,-151.0,0.00016438,2]
[401114337,1767942646378,-164.14409414,0.00016438,2]
[401114338,1767942646387,-3000.0,0.00016438,2]
[401114339,1767942646396,-3000.0,0.00016438,2]
[401114340,1767942646405,-3000.0,0.00016438,2]
[401114341,1767942646415,-183.89,0.0001644,2]
[401114342,1767942646426,-183.89,0.0001644,2]
[401114343,1767942646438,-200.0,0.00016473,2]
[401114344,1767942646448,-2403.26771612,0.00016551,2]
[401114345,1767942646459,-995.04726907,0.0001656,2]
[401114346,1767942646469,-3500.0,0.0001656,2]
[401114347,1767942646479,-3500.0,0.0001656,2]
[401114348,1767942646489,-3416.14528931,0.0001656,2]
[401114350,1767942646498,-1000.0,0.000167,2]
[401114352,1767942646508,-151.0,0.000168,2]
[401114354,1767942646517,-2403.26771612,0.00016812,2]
[401114356,1767942646526,-570.00203172,0.00016824,2]
[401114358,1767942646536,-2100.0,0.0001696,2]
[401114360,1767942646545,-3500.0,0.00016986,2]
[401114362,1767942646555,-3500.0,0.00016986,2]
[401114364,1767942646564,-3500.0,0.00016986,2]
[401114366,1767942646574,-2403.26771612,0.00017103,2]
[401114368,1767942646583,-4000.0,0.00017108,2]
[401114370,1767942646593,-4000.0,0.00017108,2]
[401114372,1767942646602,-10193.36340853,0.00017161,2]
[401114374,1767942646611,-200.0,0.0001726,2]
[401114376,1767942646620,-1101.71202862,0.0001726,2]
[401114378,1767942646629,-151.0,0.00017261,2]
[401114380,1767942646638,-151.0,0.00017261,2]
[401114382,1767942646648,-151.0,0.00017261,2]
[401114384,1767942646657,-186.239267,0.00017261,2]
[401114386,1767942646667,-186.239267,0.00017261,2]
[401114388,1767942646676,-186.239267,0.00017261,2]
[401114390,1767942646686,-186.239267,0.00017261,2]
[401114392,1767942646695,-979.022557,0.00017261,2]
[401114394,1767942646704,-979.022557,0.00017261,2]
[401114396,1767942646713,-979.022557,0.00017261,2]
[401114398,1767942646723,-979.022557,0.00017261,2]
[401114400,1767942646732,-419.868976,0.00017261,2]
[401114402,1767942646741,-419.868976,0.00017261,2]
[401114404,1767942646753,-419.868976,0.00017261,2]
[401114406,1767942646762,-419.868976,0.00017261,2]
[401114408,1767942646773,-1500.0,0.00017261,2]
[401114410,1767942646782,-151.0,0.00017261,2]
[401114412,1767942646792,-311.1,0.00017261,2]
[401114414,1767942646801,-151.0,0.00017261,2]
[401114416,1767942646810,-2030.29667201,0.00017261,2]
[401114418,1767942646819,-151.0,0.00017261,2]
[401114420,1767942646829,-151.0,0.00017261,2]
[401114422,1767942646838,-151.0,0.00017261,2]
[401114424,1767942646848,-151.0,0.00017261,2]
[401114426,1767942646857,-250.0,0.00017261,2]
[401114428,1767942646866,-151.0,0.00017261,2]
[401114430,1767942646875,-151.0,0.00017261,2]
[401114432,1767942646885,-1500.0,0.00017261,2]
[401114434,1767942646894,-151.0,0.00017261,2]
[401114436,1767942646903,-478.75725327,0.00017261,2]
[401114438,1767942646912,-250.0,0.00017261,2]
[401114440,1767942646921,-151.0,0.00017261,2]
[401114442,1767942646931,-151.0,0.00017261,2]
[401114444,1767942646940,-1500.0,0.00017261,2]
[401114446,1767942646949,-151.0,0.00017261,2]
[401114448,1767942646958,-250.0,0.00017261,2]
[401114450,1767942646967,-151.0,0.00017261,2]
[401114452,1767942646976,-151.0,0.00017261,2]
[401114454,1767942646986,-151.0,0.00017261,2]
[401114456,1767942646995,-1500.0,0.00017261,2]
[401114458,1767942647004,-250.0,0.00017261,2]
[401114460,1767942647014,-151.0,0.00017261,2]
[401114462,1767942647023,-1500.0,0.00017261,2]
[401114464,1767942647032,-151.0,0.00017261,2]
[401114466,1767942647041,-250.0,0.00017261,2]
[401114468,1767942647051,-151.0,0.00017261,2]
[401114470,1767942647060,-1500.0,0.00017261,2]
[401114472,1767942647069,-151.0,0.00017261,2]
[401114474,1767942647078,-250.0,0.00017261,2]
[401114476,1767942647088,-151.0,0.00017261,2]
[401114478,1767942647101,-1500.0,0.00017261,2]
[401114481,1767942647118,-151.0,0.00017261,2]
[401114483,1767942647131,-151.0,0.00017261,2]
[401114485,1767942647140,-1500.0,0.00017261,2]
[401114487,1767942647150,-151.0,0.00017261,2]
[401114489,1767942647160,-151.0,0.00017261,2]
[401114491,1767942647179,-1500.0,0.00017261,2]
[401114493,1767942647191,-151.0,0.00017261,2]
[401114495,1767942647200,-151.0,0.00017261,2]
[401114497,1767942647211,-1500.0,0.00017261,2]
[401114499,1767942647220,-151.0,0.00017261,2]
[401114501,1767942647230,-151.0,0.00017261,2]
[401114503,1767942647239,-1500.0,0.00017261,2]
[401114505,1767942647249,-152.53645226,0.00017261,2]
[401114507,1767942647259,-151.0,0.00017261,2]
[401114509,1767942647268,-1500.0,0.00017261,2]
[401114511,1767942647278,-151.0,0.00017261,2]
[401114513,1767942647288,-1500.0,0.00017261,2]
[401114515,1767942647297,-151.0,0.00017261,2]
[401114517,1767942647306,-1500.0,0.00017261,2]
[401114519,1767942647316,-151.0,0.00017261,2]
[401114521,1767942647325,-1500.0,0.00017261,2]
[401114523,1767942647335,-151.0,0.00017261,2]
[401114525,1767942647344,-500.0,0.00017261,2]
[401114527,1767942647353,-30000.0,0.00017261,2]
[401114529,1767942647363,-250.0,0.00017261,2]
[401114531,1767942647372,-151.0,0.00017261,2]
[401114533,1767942647382,-500.0,0.00017261,2]
[401114552,1767942647542,-250.0,0.00017261,2]
[401114555,1767942647570,-500.0,0.00017261,2]
[401114556,1767942647580,-250.0,0.00017261,2]
[401114559,1767942647590,-500.0,0.00017261,2]
[401114560,1767942647599,-250.0,0.00017261,2]
[401114562,1767942647608,-151.0,0.00017261,2]
[401114565,1767942647618,-500.0,0.00017261,2]
[401114567,1767942647627,-250.0,0.00017261,2]
[401114569,1767942647636,-500.0,0.00017261,2]
[401114570,1767942647646,-250.0,0.00017261,2]
[401114572,1767942647655,-500.0,0.00017261,2]
[401114574,1767942647667,-250.0,0.00017261,2]
[401114577,1767942647676,-250.0,0.00017261,2]
[401114579,1767942647686,-500.0,0.00017261,2]
[401114581,1767942647695,-250.0,0.00017261,2]
[401114583,1767942647704,-201.61280064,0.00017261,2]
[401114585,1767942647714,-500.0,0.00017261,2]
[401114587,1767942647723,-250.0,0.00017261,2]
[401114589,1767942647733,-250.0,0.00017261,2]
[401114591,1767942647744,-500.0,0.00017261,2]
[401114593,1767942647754,-250.0,0.00017261,2]
[401114595,1767942647763,-250.0,0.00017261,2]
[401114597,1767942647773,-500.0,0.00017261,2]
[401114599,1767942647783,-250.0,0.00017261,2]
[401114601,1767942647792,-250.0,0.00017261,2]
[401114603,1767942647803,-500.0,0.00017261,2]
[401114605,1767942647812,-250.0,0.00017261,2]
[401114607,1767942647822,-250.0,0.00017261,2]
[401114609,1767942647831,-250.0,0.00017261,2]
[401114611,1767942647840,-500.0,0.00017261,2]
[401114613,1767942647850,-250.0,0.00017261,2]
[401114615,1767942647859,-500.0,0.00017261,2]
[401114617,1767942647868,-250.0,0.00017261,2]
[401114619,1767942647878,-250.0,0.00017261,2]
[401114621,1767942647887,-250.0,0.00017261,2]
[401114623,1767942647896,-250.0,0.00017261,2]
[401114625,1767942647906,-250.0,0.00017261,2]
[401114627,1767942647916,-250.0,0.00017261,2]
[401114629,1767942647928,-250.0,0.00017261,2]
[401114631,1767942647937,-250.0,0.00017261,2]
[401114633,1767942647952,-250.0,0.00017261,2]
[401114635,1767942647968,-250.0,0.00017261,2]
[401114637,1767942647977,-2312.83697232,0.00017261,2]
[401114639,1767942647986,-250.0,0.00017261,2]
[401114641,1767942647996,-264.83937598,0.00017261,2]
[401114643,1767942648006,-250.0,0.00017261,2]
[401114645,1767942648015,-250.0,0.00017261,2]
[401114647,1767942648025,-250.0,0.00017261,2]
[401114649,1767942648034,-250.0,0.00017261,2]
[401114652,1767942648044,-2403.26771612,0.00017404,2]
[401114654,1767942648054,-5000.0,0.00017412,2]
[401114655,1767942648063,-619.25363932,0.00017448,9]
[401114658,1767942648072,-2400.0,0.00017508,2]
[401114660,1767942648082,-4000.0,0.00017534,2]
[401114662,1767942648092,-4000.0,0.00017534,2]
[401114664,1767942648101,-4000.0,0.00017534,2]
[401114665,1767942648111,-883.0,0.00017535,2]
[401114667,1767942648120,-340.56,0.00017595,2]
[401114669,1767942648130,-2403.26771612,0.00017644,2]
[401114671,1767942648139,-4500.0,0.00017656,2]
[401114673,1767942648148,-4500.0,0.00017656,2]
[401114675,1767942648158,-322.6107,0.00017809,2]
[401114677,1767942648167,-496.47127164,0.00017809,2]
[401114679,1767942648177,-295.16938961,0.00017809,2]
[401114681,1767942648186,-2398.4119403,0.00017809,2]
[401114683,1767942648195,-400.0,0.00017842,2]
[401114685,1767942648204,-1000.0,0.00017885,2]
[401114687,1767942648214,-1000.0,0.00017885,2]
[401114689,1767942648223,-9596.70465525,0.00017937,2]
[401114691,1767942648232,-210.30190796,0.00017937,2]
[401114693,1767942648241,-373.52517832,0.00017937,2]
[401114695,1767942648251,-1494.10071329,0.00017937,2]
[401114696,1767942648261,-3361.7266049,0.00017937,2]
[401114699,1767942648271,-5976.40285315,0.00017971,2]
[401114700,1767942648280,-151.0,0.00018,2]
[401114703,1767942648290,-2403.26771612,0.00018002,2]
[401114704,1767942648300,-267.55800831,0.00018044,2]
[401114706,1767942648310,-1944.72420012,0.00018056,2]
[401114708,1767942648319,-9971.05764673,0.00018082,2]
[401114710,1767942648328,-5891.30490471,0.00018082,2]
[401114712,1767942648337,-498.28501117,0.00018082,2]
[401114714,1767942648347,-1993.14004469,0.00018082,2]
[401114716,1767942648357,-4484.56510055,0.00018082,2]
[401114718,1767942648366,-9256.88892228,0.00018082,2]
[401114721,1767942648376,-11715.75004226,0.00018082,2]
[401114723,1767942648385,-4500.0,0.00018082,2]
[401114725,1767942648395,-4500.0,0.00018082,2]
[401114726,1767942648404,-4500.0,0.00018082,2]
[401114727,1767942648413,-2403.26771612,0.00018153,2]
[401114728,1767942648423,-15627.00807034,0.000182,3]
[401114729,1767942648432,-9554.89714961,0.000182,3]
[401114730,1767942648441,-200.0,0.00018201,2]
[401114731,1767942648451,-21825.0989491,0.00018202,2]
[401114732,1767942648460,-4417.01439994,0.00018204,2]
[401114733,1767942648470,-5000.0,0.00018204,2]
[401114734,1767942648479,-419.868976,0.00018208,2]
[401114735,1767942648488,-419.868976,0.00018208,2]
[401114736,1767942648497,-419.868976,0.00018208,2]
[401114737,1767942648507,-419.868973,0.00018208,2]
[401114738,1767942648516,-6006.53001288,0.00018275,2]
[401114739,1767942648525,-14436.1658664,0.00018308,2]
[401114740,1767942648534,-979.022557,0.00018308,2]
[401114741,1767942648543,-979.022557,0.00018308,2]
[401114742,1767942648552,-979.022557,0.00018308,2]
[401114743,1767942648561,-979.022555,0.00018308,2]
[401114744,1767942648570,-334.5472959,0.00018357,2]
[401114745,1767942648579,-514.84070869,0.00018357,2]